fUSD/lending_fUSD_20240505
["ID","MTS","AMOUNT","RATE_DAILY","PERIOD"]
[325437751,1714891668186,-2270.37,0.00041643,30]
[325437752,1714891668223,-591.95,0.00041643,30]
[325437753,1714891668262,-6025.6,0.00041643,30]
[325437754,1714891668299,-1494.11,0.00041643,30]
[325437755,1714891668344,-1605.66,0.00041643,30]
[325437756,1714891668385,-1875.67,0.00041643,30]
[325437757,1714891668629,-535.87,0.00041643,30]
[325437758,1714891668671,-711.59,0.00041643,30]
[325437759,1714891668710,-526.89,0.00041643,30]
[325437760,1714891668748,-5363.69,0.00041643,30]
[325437761,1714891668786,-1644.53,0.00041643,30]
[325437762,1714891668824,-1323.84,0.00041643,30]
[325437763,1714891668860,-602.36,0.00041643,30]
[325437764,1714891668896,-3482.41,0.00041643,30]
[325437765,1714891668935,-1840.91,0.00041643,30]
[325437766,1714891668975,-1029.09,0.00041643,30]
[325437767,1714891669018,-37914.51,0.00041643,30]
[325437768,1714891669055,-546.16,0.00041643,30]
[325437769,1714891669091,-699.08,0.00041643,30]
[325437770,1714891669127,-3181.37,0.00041643,30]
[325437771,1714891669163,-854.82,0.00041643,30]
[325437772,1714891669204,-3587.11,0.00041643,30]
[325437773,1714891669245,-1324.08,0.00041643,30]
[325437774,1714891669287,-1184.74,0.00041643,30]
[325437775,1714891669327,-3641.55,0.00041643,30]
[325437776,1714891669366,-810.0,0.0004171,30]
[325437777,1714891669402,-476.0,0.0004171,30]
[325437778,1714891669439,-2000.0,0.0004178,33]
[325437779,1714891669478,-5090.9395311,0.000418,30]
[325437780,1714891669519,-14771.0,0.000418,90]
[325437781,1714891669563,-3160.70917679,0.00041888,120]
[325437782,1714891669613,-2000.0,0.000419,30]
[325437783,1714891669657,-567.12368412,0.00041917,31]
[325437784,1714891669705,-162.30738476,0.00041917,31]
[325437785,1714891669750,-716.56891954,0.00041917,31]
[325437786,1714891669796,-1056.74973467,0.00041917,31]
[325437787,1714891669837,-1202.60140293,0.00041917,31]
[325437788,1714891669882,-785.72645339,0.00041917,31]
[325437789,1714891669924,-452.49974699,0.00041917,31]
[325437790,1714891669966,-596.58226509,0.00041917,31]
[325437791,1714891670011,-704.19252706,0.00041917,31]
[325437792,1714891670053,-1060.44136339,0.00041917,31]
[325437793,1714891670097,-999.14846935,0.00041917,31]
[325437794,1714891670139,-1433.56013521,0.00041917,31]
[325437795,1714891670183,-867.12473525,0.00041917,31]
[325437796,1714891670212,-1254.67477497,0.00041917,31]
[325437797,1714891670239,-570.96504124,0.00041917,31]
[325437798,1714891670265,-581.62751245,0.00041917,31]
[325437799,1714891670291,-1247.78453671,0.00041917,31]
[325437800,1714891670316,-566.35514599,0.00041917,31]
[325437801,1714891670342,-539.30358717,0.00041917,31]
[325437802,1714891670366,-761.47241187,0.00041917,31]
[325437803,1714891670391,-637.39680568,0.00041917,31]
[325437804,1714891670415,-1466.89798241,0.00041917,31]
[325437805,1714891670440,-1247.7060471,0.00041917,31]
[325437806,1714891670464,-875.65851902,0.00041917,31]
[325437807,1714891670490,-624.79723454,0.00041917,31]
[325437808,1714891670517,-909.03023461,0.00041917,31]
[325437809,1714891670544,-1267.53650592,0.00041917,31]
[325437810,1714891670572,-1134.59455028,0.00041917,31]
[325437811,1714891670599,-1221.95978092,0.00041917,31]
[325437812,1714891670625,-1174.99468907,0.00041917,31]
[325437813,1714891670652,-837.84879665,0.00041917,31]
[325437814,1714891670677,-1552.40520883,0.00041917,31]
[325437815,1714891670703,-1112.25197351,0.00041917,31]
[325437816,1714891670728,-1339.57758493,0.00041917,31]
[325437817,1714891670756,-1690.99354834,0.00041917,31]
[325437818,1714891670794,-656.94496476,0.00041917,31]
[325437819,1714891670820,-1553.68584585,0.00041917,31]
[325437820,1714891670847,-790.66231528,0.00041917,31]
[325437821,1714891670873,-1414.83100493,0.00041917,31]
[325437822,1714891670900,-531.59034756,0.00041917,31]
[325437823,1714891670927,-1384.84923654,0.00041917,31]
[325437824,1714891670953,-506.69007195,0.00041917,31]
[325437825,1714891670986,-628.64916653,0.00041917,31]
[325437826,1714891671021,-843.09088145,0.00041917,31]
[325437827,1714891671049,-557.69435842,0.00041917,31]
[325437828,1714891671075,-1467.82765244,0.00041917,31]
[325437829,1714891671102,-635.86011896,0.00041917,31]
[325437830,1714891671130,-565.66703708,0.00041917,31]
[325437831,1714891671155,-1491.12096825,0.00041917,31]
[325437832,1714891671182,-1274.96924933,0.00041917,31]
[325437833,1714891671208,-1377.26591169,0.00041917,31]
[325437834,1714891671234,-520.18649112,0.00041917,31]
[325437835,1714891671262,-857.59583304,0.00041917,31]
[325437836,1714891671288,-636.94009434,0.00041917,31]
[325437837,1714891671312,-1476.83378905,0.00041917,31]
[325437838,1714891671338,-1049.2675815,0.00041917,31]
[325437839,1714891671365,-927.36443038,0.00041917,31]
[325437840,1714891671390,-967.64031436,0.00041917,31]
[325437841,1714891671416,-855.82531499,0.00041917,31]
[325437842,1714891671443,-599.68647138,0.00041917,31]
[325437843,1714891671469,-910.90629856,0.00041917,31]
[325437844,1714891672406,-1048.8167586,0.00041917,31]
[325437845,1714891672439,-1125.42482352,0.00041917,31]
[325437846,1714891672467,-1200.95454144,0.00041917,31]
[325437847,1714891672494,-1672.92734337,0.00041917,31]
[325437848,1714891672524,-978.29909225,0.00041917,31]
[325437849,1714891672553,-1253.84686123,0.00041917,31]
[325437850,1714891672579,-1168.75852947,0.00041917,31]
[325437851,1714891672606,-1283.01540857,0.00041917,31]
[325437852,1714891672632,-1147.07984921,0.00041917,31]
[325437853,1714891672657,-739.92065774,0.00041917,31]
[325437854,1714891672683,-266.10569803,0.00041917,31]
[325437855,1714891672709,-1519.69875988,0.00041917,31]
[325437856,1714891672736,-561.52748718,0.00041917,31]
[325437857,1714891672762,-818.32689246,0.00041917,31]
[325437858,1714891672786,-990.49383073,0.00041917,31]
[325437859,1714891672812,-2500.0,0.00041917,30]
[325437860,1714891672840,-2500.0,0.00041917,30]
[325437861,1714891673089,-2500.0,0.00041917,30]
[325437862,1714891673129,-2500.0,0.00041917,30]
[325437863,1714891673169,-2500.0,0.00041917,30]
[325437864,1714891673210,-2500.0,0.00041917,30]
[325437865,1714891673250,-2500.0,0.00041917,30]
[325437866,1714891673291,-1073.64109764,0.00041917,31]
[325437867,1714891673331,-2500.0,0.00041917,30]
[325437868,1714891673373,-2500.0,0.00041917,30]
[325437869,1714891673417,-2500.0,0.00041917,30]
[325437870,1714891673942,-2500.0,0.00041917,30]
[325437871,1714891673982,-2500.0,0.00041917,30]
[325437872,1714891674023,-2500.0,0.00041917,30]
[325437873,1714891674066,-2500.0,0.00041917,30]
[325437874,1714891674106,-2500.0,0.00041917,30]
[325437875,1714891674146,-592.09319215,0.00041917,31]
[325437876,1714891674186,-2500.0,0.00041917,30]
[325437877,1714891674227,-2500.0,0.00041917,30]
[325437878,1714891674266,-525.01554244,0.00041917,31]
[325437879,1714891674305,-2500.0,0.00041917,30]
[325437880,1714891674344,-915.34427341,0.00041917,31]
[325437881,1714891674385,-2500.0,0.00041917,30]
[325437882,1714891674425,-836.73642233,0.00041917,31]
[325437883,1714891674463,-2500.0,0.00041917,30]
[325437884,1714891674504,-2500.0,0.00041917,30]
[325437885,1714891674547,-699.92398095,0.00041917,30]
[325437886,1714891674589,-721.62608502,0.00041917,31]
[325437887,1714891674627,-1352.72573894,0.00041917,31]
[325437888,1714891674668,-799.34227811,0.00041917,31]
[325437889,1714891674707,-981.80881865,0.00041917,31]
[325437890,1714891674744,-1265.08130347,0.00041917,31]
[325437891,1714891674784,-1059.51331801,0.00041917,31]
[325437892,1714891674825,-711.63212964,0.00041917,31]
[325437893,1714891674866,-658.96307815,0.00041917,31]
[325437894,1714891674906,-636.13272332,0.00041917,31]
[325437895,1714891674945,-912.33279402,0.00041917,31]
[325437896,1714891674986,-914.02,0.00041917,31]
[325437897,1714891675024,-589.02991398,0.00041917,31]
[325437898,1714891675068,-867.34413088,0.00041917,31]
[325437899,1714891675110,-1205.33641011,0.00041917,31]
[325437900,1714891675152,-958.87850716,0.00041917,31]
[325437901,1714891675190,-1256.26193357,0.00041917,31]
[325437902,1714891675229,-1453.84,0.00041917,31]
[325437903,1714891675268,-827.61045436,0.00041917,31]
[325437904,1714891675306,-1045.38082367,0.00041917,31]
[325437905,1714891675347,-646.74923709,0.00041917,31]
[325437906,1714891675389,-1110.5607291,0.00041917,31]
[325437907,1714891675432,-811.11654018,0.00041917,31]
[325437908,1714891675475,-876.52184744,0.00041917,31]
[325437909,1714891675518,-518.34400653,0.00041917,31]
[325437910,1714891675559,-642.37239404,0.00041917,31]
[325437911,1714891675598,-1466.08904942,0.00041917,31]
[325437912,1714891675640,-782.68144658,0.00041917,31]
[325437913,1714891675682,-695.262522,0.00041917,31]
[325437914,1714891675723,-649.76636215,0.00041917,31]
[325437915,1714891675764,-917.47915841,0.00041917,31]
[325437916,1714891675808,-819.00740576,0.00041917,31]
[325437917,1714891675850,-731.3674825,0.00041917,31]
[325437918,1714891675889,-1509.2139019,0.00041917,31]
[325437919,1714891675929,-1467.86982429,0.00041917,31]
[325437920,1714891675970,-627.21136753,0.00041917,31]
[325437921,1714891676016,-802.61241234,0.00041917,31]
[325437922,1714891676058,-1006.78031223,0.00041917,31]
[325437923,1714891676100,-1196.26828457,0.00041917,31]
[325437924,1714891676140,-519.42319488,0.00041917,31]
[325437925,1714891676179,-1283.98190364,0.00041917,31]
[325437926,1714891676218,-597.12677966,0.00041917,31]
[325437927,1714891676257,-566.96110837,0.00041917,31]
[325437928,1714891676299,-745.00813191,0.00041917,31]
[325437929,1714891676337,-684.58493881,0.00041917,31]
[325437930,1714891676376,-1025.42601513,0.00041917,31]
[325437931,1714891676412,-705.50952771,0.00041917,31]
[325437932,1714891676448,-880.81635226,0.00041917,31]
[325437933,1714891676487,-1177.05248667,0.00041917,31]
[325437934,1714891676524,-967.0,0.00041917,31]
[325437935,1714891676563,-778.49773409,0.00041917,31]
[325437936,1714891676600,-772.85121083,0.00041917,31]
[325437937,1714891676636,-1453.49175697,0.00041917,31]
[325437938,1714891676674,-724.24398348,0.00041917,31]
[325437939,1714891676711,-691.84840917,0.00041917,31]
[325437940,1714891676751,-1141.04225439,0.00041917,31]
[325437941,1714891676789,-1228.01233255,0.00041917,31]
[325437942,1714891676826,-879.49211189,0.00041917,31]
[325437943,1714891676864,-1765.65711453,0.00041917,31]
[325437944,1714891676902,-597.48519148,0.00041917,31]
[325437945,1714891676937,-633.07442936,0.00041917,31]
[325437946,1714891676973,-1057.51,0.00041917,31]
[325437947,1714891677014,-447.99903588,0.00041917,31]
[325437948,1714891677051,-718.14118731,0.00041917,31]
[325437949,1714891677091,-952.70734961,0.00041917,31]
[325437950,1714891677127,-802.57991034,0.00041917,31]
[325437951,1714891677164,-687.69196585,0.00041917,31]
[325437952,1714891677200,-803.25266105,0.00041917,31]
[325437953,1714891677236,-2196.29254005,0.00041917,31]
[325437954,1714891677274,-1020.90952529,0.00041917,31]
[325437955,1714891677312,-634.28853524,0.00041917,31]
[325437956,1714891677350,-1004.18648634,0.00041917,31]
[325437957,1714891677388,-527.8351445,0.00041917,31]
[325437958,1714891677424,-1215.01047014,0.00041917,31]
[325437959,1714891677465,-577.46745225,0.00041917,31]
[325437960,1714891677502,-2238.37853677,0.00041917,31]
[325437961,1714891677542,-854.60853383,0.00041917,31]
[325437962,1714891677584,-600.58004833,0.00041917,31]
[325437963,1714891677622,-2980.49105238,0.00041917,31]
[325437964,1714891677658,-913.93064362,0.00041917,31]
[325437965,1714891677919,-1496.34895286,0.00041917,31]
[325437966,1714891677958,-1635.82979795,0.00041917,31]
[325437967,1714891677996,-727.20142281,0.00041917,31]
[325437968,1714891678044,-3730.22071115,0.00041917,31]
[325437969,1714891678084,-1668.2461919,0.00041917,31]
[325437970,1714891678122,-830.08472321,0.00041917,31]
[325437971,1714891678161,-1164.63923973,0.00041917,31]
[325437972,1714891678201,-986.2916273,0.00041917,31]
[325437973,1714891678238,-2110.65080893,0.00041917,31]
[325437974,1714891678276,-660.81005677,0.00041917,31]
[325437975,1714891678314,-1491.12432599,0.00041917,31]
[325437976,1714891678352,-978.57545473,0.00041917,31]
[325437977,1714891678392,-1793.0394544,0.00041917,31]
[325437978,1714891678433,-814.42418048,0.00041917,31]
[325437979,1714891678473,-1036.32494627,0.00041917,31]
[325437980,1714891678512,-2007.988504,0.00041917,31]
[325437981,1714891678555,-802.0133324,0.00041917,31]
[325437982,1714891678597,-2703.16302227,0.00041917,31]
[325437983,1714891678640,-1026.6218096,0.00041917,31]
[325437984,1714891678680,-1547.16790646,0.00041917,31]
[325437985,1714891678721,-669.86709147,0.00041917,31]
[325437986,1714891678763,-707.35127769,0.00041917,31]
[325437987,1714891678805,-2609.53333321,0.00041917,31]
[325437988,1714891678845,-751.46610751,0.00041917,31]
[325437989,1714891678885,-1443.99520601,0.00041917,31]
[325437990,1714891678927,-3494.68998529,0.00041917,31]
[325437991,1714891678969,-1798.44822663,0.00041917,31]
[325437992,1714891679012,-850.92171656,0.00041917,31]
[325437993,1714891679056,-592.33323111,0.00041917,31]
[325437994,1714891679100,-1383.81683866,0.00041917,31]
[325437995,1714891679140,-667.05847686,0.00041917,31]
[325437996,1714891679182,-2985.23886358,0.00041917,31]
[325437997,1714891679223,-1109.59430064,0.00041917,31]
[325437998,1714891679262,-654.97629381,0.00041917,31]
[325437999,1714891679304,-1055.82358457,0.00041917,31]
[325438000,1714891679342,-1660.01539612,0.00041917,31]
[325438001,1714891679380,-649.24921448,0.00041917,31]
[325438002,1714891679416,-1747.72297429,0.00041917,31]
[325438003,1714891679451,-682.8423268,0.00041917,31]
[325438004,1714891679490,-687.68127908,0.00041917,31]
[325438005,1714891679530,-662.40290054,0.00041917,31]
[325438006,1714891679569,-844.22178811,0.00041917,31]
[325438007,1714891679608,-1733.73302537,0.00041917,31]
[325438008,1714891679648,-634.85587182,0.00041917,31]
[325438009,1714891679687,-804.97855628,0.00041917,31]
[325438010,1714891679726,-2029.61273095,0.00041917,31]
[325438011,1714891679763,-1318.81894985,0.00041917,31]
[325438012,1714891679804,-530.04471381,0.00041917,31]
[325438013,1714891679841,-1022.85969453,0.00041917,31]
[325438014,1714891679881,-2156.3081335,0.00041917,31]
[325438015,1714891679921,-1758.63350809,0.00041917,31]
[325438016,1714891679959,-582.66710393,0.00041917,31]
[325438017,1714891679999,-531.379897,0.00041917,31]
[325438018,1714891680044,-618.2530503,0.00041917,31]
[325438019,1714891680098,-1515.06774585,0.00041917,31]
[325438020,1714891680143,-2561.19131988,0.00041917,31]
[325438021,1714891680191,-3402.79321905,0.00041917,31]
[325438022,1714891680236,-856.77100666,0.00041917,31]
[325438023,1714891680291,-1909.24149514,0.00041917,31]
[325438024,1714891680342,-2223.89554737,0.00041917,31]
[325438025,1714891680390,-661.58688069,0.00041917,31]
[325438026,1714891680438,-569.44735239,0.00041917,31]
[325438027,1714891680492,-987.12137701,0.00041917,31]
[325438028,1714891680543,-2082.26288825,0.00041917,31]
[325438029,1714891680592,-2355.13911338,0.00041917,31]
[325438030,1714891680640,-1183.97558642,0.00041917,31]
[325438031,1714891680684,-1921.36324153,0.00041917,31]
[325438032,1714891680729,-1747.99430344,0.00041917,31]
[325438033,1714891680776,-681.82564717,0.00041917,31]
[325438034,1714891680818,-600.05333839,0.00041917,31]
[325438035,1714891680862,-1800.87743954,0.00041917,31]
[325438036,1714891680906,-535.58998283,0.00041917,31]
[325438037,1714891680947,-1627.95182911,0.00041917,31]
[325438038,1714891680992,-1205.63381445,0.00041917,31]
[325438039,1714891681045,-810.29251407,0.00041917,31]
[325438040,1714891681091,-1943.28898762,0.00041917,31]
[325438041,1714891681135,-1376.21491295,0.00041917,31]
[325438042,1714891681179,-883.57764789,0.00041917,31]
[325438043,1714891681220,-1011.55745122,0.00041917,31]
[325438044,1714891681262,-2978.63964418,0.00041917,31]
[325438045,1714891681309,-1429.8838805,0.00041917,31]
[325438046,1714891681353,-3756.34010985,0.00041917,31]
[325438047,1714891681396,-1972.42732682,0.00041917,31]
[325438048,1714891681437,-730.53994397,0.00041917,31]
[325438049,1714891681477,-839.89369761,0.00041917,31]
[325438050,1714891681515,-1220.39553107,0.00041917,31]
[325438051,1714891681558,-1400.54803246,0.00041917,31]
[325438052,1714891681601,-1702.89028855,0.00041917,31]
[325438053,1714891681642,-633.16445397,0.00041917,31]
[325438054,1714891681684,-1258.30879078,0.00041917,31]
[325438055,1714891681724,-1884.74842232,0.00041917,31]
[325438056,1714891681765,-1635.04145813,0.00041917,31]
[325438057,1714891681809,-785.57327902,0.00041917,31]
[325438058,1714891681851,-1131.8909625,0.00041917,31]
[325438059,1714891681891,-1125.03999912,0.00041917,31]
[325438060,1714891681932,-696.87293136,0.00041917,31]
[325438061,1714891681972,-572.06091807,0.00041917,31]
[325438062,1714891682014,-518.97387826,0.00041917,31]
[325438063,1714891682057,-1443.59645244,0.00041917,31]
[325438064,1714891682101,-529.93432894,0.00041917,31]
[325438065,1714891682142,-1193.73417695,0.00041917,31]
[325438066,1714891682180,-1416.03,0.00041917,31]
[325438067,1714891682221,-590.48001598,0.00041917,31]
[325438068,1714891682498,-660.7716687,0.00041917,31]
[325438069,1714891682540,-2000.0,0.00041917,34]
[325438070,1714891682588,-1491.58404414,0.00041917,31]
[325438071,1714891682627,-1763.33816501,0.00041917,31]
[325438072,1714891682670,-767.22604388,0.00041917,31]
[325438073,1714891682712,-1283.53564454,0.00041917,31]
[325438074,1714891682754,-969.94481697,0.00041917,31]
[325438075,1714891682797,-2268.7599623,0.00041917,31]
[325438076,1714891682841,-1701.13421222,0.00041917,31]
[325438077,1714891682883,-1462.55014641,0.00041917,31]
[325438078,1714891682923,-1906.41018297,0.00041917,31]
[325438079,1714891682964,-2727.98158249,0.00041917,31]
[325438080,1714891683009,-1303.324449,0.00041917,31]
[325438081,1714891683055,-615.95165043,0.00041917,31]
[325438082,1714891683097,-1240.40693844,0.00041917,31]
[325438083,1714891683138,-617.26383185,0.00041917,31]
[325438084,1714891683180,-2026.41588108,0.00041917,31]
[325438085,1714891683220,-715.34796955,0.00041917,31]
[325438086,1714891683260,-625.54757751,0.00041917,31]
[325438087,1714891683303,-1725.456221,0.00041917,31]
[325438088,1714891683343,-1918.76844606,0.00041917,31]
[325438089,1714891683385,-1044.57301248,0.00041917,31]
[325438090,1714891683433,-2120.60820001,0.00041917,31]
[325438091,1714891683476,-579.52273338,0.00041917,31]
[325438092,1714891683520,-1086.38,0.00041917,31]
[325438093,1714891683565,-1078.46873411,0.00041917,31]
[325438094,1714891683610,-1691.40361414,0.00041917,31]
[325438095,1714891683653,-1043.12910148,0.00041917,31]
[325438096,1714891683697,-541.32,0.00041917,31]
[325438097,1714891683741,-1564.73574472,0.00041917,31]
[325438098,1714891683787,-989.69192144,0.00041917,31]
[325438099,1714891683831,-605.20320897,0.00041917,31]
[325438100,1714891683878,-777.43072304,0.00041917,31]
[325438101,1714891683924,-1938.33697748,0.00041917,31]
[325438102,1714891683969,-1898.20528542,0.00041917,31]
[325438103,1714891684019,-986.60192102,0.00041917,31]
[325438104,1714891684069,-1222.2340153,0.00041917,31]
[325438105,1714891684113,-1538.12256444,0.00041917,31]
[325438106,1714891684159,-794.37844796,0.00041917,31]
[325438107,1714891684201,-503.71359419,0.00041917,31]
[325438108,1714891684241,-584.78593034,0.00041917,31]
[325438109,1714891684283,-1154.25974102,0.00041917,31]
[325438110,1714891684325,-1573.61309697,0.00041917,31]
[325438111,1714891684367,-472.99015285,0.00041917,31]
[325438112,1714891684407,-1525.86213432,0.00041917,31]
[325438113,1714891684449,-1060.60734956,0.00041917,31]
[325438114,1714891684489,-806.56409535,0.00041917,31]
[325438115,1714891684529,-1496.59,0.00041917,31]
[325438116,1714891684570,-815.22619233,0.00041917,31]
[325438117,1714891684608,-1113.10830973,0.00041917,31]
[325438118,1714891684649,-1158.28048782,0.00041917,31]
[325438119,1714891684691,-1895.38673315,0.00041917,31]
[325438120,1714891684732,-1952.98120573,0.00041917,31]
[325438121,1714891684775,-1046.8495953,0.00041917,31]
[325438122,1714891684820,-693.41221697,0.00041917,31]
[325438123,1714891684864,-1559.25448447,0.00041917,31]
[325438124,1714891684907,-1194.98643274,0.00041917,31]
[325438125,1714891684948,-589.79334617,0.00041917,31]
[325438126,1714891684989,-328.09218662,0.00041917,31]
[325438127,1714891685035,-1394.04522284,0.00041917,31]
[325438128,1714891685083,-1008.36723953,0.00041917,31]
[325438129,1714891685127,-1456.07260453,0.00041917,31]
[325438130,1714891685172,-2149.39476888,0.00041917,31]
[325438131,1714891685216,-836.39291283,0.00041917,31]
[325438132,1714891685259,-1384.12841451,0.00041917,31]
[325438133,1714891685305,-763.91268539,0.00041917,31]
[325438134,1714891685347,-1316.27749516,0.00041917,31]
[325438135,1714891685390,-909.65783969,0.00041917,31]
[325438136,1714891685436,-517.95620759,0.00041917,31]
[325438137,1714891685481,-698.17340195,0.00041917,31]
[325438138,1714891685527,-690.72281564,0.00041917,31]
[325438139,1714891685570,-632.60290176,0.00041917,31]
[325438140,1714891685612,-1110.04251499,0.00041917,31]
[325438141,1714891685654,-1467.45610217,0.00041917,31]
[325438142,1714891685698,-2142.2251903,0.00041917,31]
[325438143,1714891685744,-2488.58590794,0.00041917,31]
[325438144,1714891685787,-3663.95391154,0.00041917,31]
[325438145,1714891685831,-1354.42137925,0.00041917,31]
[325438146,1714891685877,-3079.40293172,0.00041917,31]
[325438147,1714891685920,-1534.77868055,0.00041917,31]
[325438148,1714891685965,-732.05014214,0.00041917,31]
[325438149,1714891686011,-932.79,0.00041917,31]
[325438150,1714891686060,-1363.25908637,0.00041917,31]
[325438151,1714891686104,-2175.63906983,0.00041917,31]
[325438152,1714891686150,-13214.03747979,0.00041917,31]
[325438153,1714891686194,-1454.41014292,0.00041917,31]
[325438154,1714891686236,-1307.80725513,0.00041917,31]
[325438155,1714891686280,-808.93209949,0.00041917,31]
[325438156,1714891686326,-4961.05486451,0.00041917,31]
[325438157,1714891686374,-692.53216331,0.00041917,31]
[325438158,1714891686418,-1165.29618411,0.00041917,31]
[325438159,1714891686460,-1772.72034603,0.00041917,31]
[325438160,1714891686501,-56769.90518475,0.00041917,31]
[325438161,1714891686540,-3440.68494911,0.00041917,31]
[325438162,1714891686582,-735.78660841,0.00041917,31]
[325438163,1714891686623,-576.4328657,0.00041917,31]
[325438164,1714891686664,-27435.6246048,0.00041917,31]
[325438165,1714891686706,-2869.33975652,0.00041917,31]
[325438166,1714891686749,-9075.88866267,0.00041917,31]
[325438167,1714891686791,-1126.00418957,0.00041917,31]
[325438168,1714891686833,-2052.68918321,0.00041917,31]
[325438169,1714891686876,-5498.44943955,0.00041917,31]
[325438170,1714891686918,-3966.28510438,0.00041917,31]
[325438171,1714891686960,-1519.67475475,0.00041917,31]
[325438172,1714891687224,-1257.72557575,0.00041917,31]
[325438173,1714891687264,-6204.55,0.00041917,31]
[325438174,1714891687306,-1348.02307345,0.00041917,31]
[325438175,1714891687346,-1376.46602589,0.00041917,31]
[325438176,1714891687386,-660.37787707,0.00041917,31]
[325438177,1714891687424,-227.1069013,0.00041917,31]
[325438178,1714891687464,-2277.81967659,0.00041917,31]
[325438179,1714891687506,-622.56602081,0.00041917,31]
[325438180,1714891687550,-8632.22963841,0.00041917,31]
[325438181,1714891687590,-1289.19036918,0.00041917,31]
[325438182,1714891687629,-3504.26398816,0.00041917,31]
[325438183,1714891687670,-4145.50483234,0.00041917,31]
[325438184,1714891687710,-781.06741931,0.00041917,31]
[325438185,1714891687751,-1183.6024144,0.00041917,31]
[325438186,1714891687793,-1113.42849991,0.00041917,31]
[325438187,1714891687836,-5202.54746822,0.00041917,31]
[325438188,1714891687878,-1556.73296121,0.00041917,31]
[325438189,1714891687921,-865.6345063,0.00041917,31]
[325438190,1714891687962,-9214.81786434,0.00041917,31]
[325438191,1714891688006,-1124.84140465,0.00041917,31]
[325438192,1714891688053,-2018.12473538,0.00041917,31]
[325438193,1714891688096,-2871.03020579,0.00041917,31]
[325438194,1714891688139,-1470.01987026,0.00041917,31]
[325438195,1714891688185,-1142.53993046,0.00041917,31]
[325438196,1714891688227,-1452.43746988,0.00041917,31]
[325438197,1714891688270,-1143.64198303,0.00041917,31]
[325438198,1714891688313,-3948.80558402,0.00041917,31]
[325438199,1714891688355,-3972.14156404,0.00041917,31]
[325438200,1714891688397,-8445.72674191,0.00041917,31]
[325438201,1714891688440,-1498.68461701,0.00041917,31]
[325438202,1714891688482,-970.45,0.00041917,31]
[325438203,1714891688528,-1602.97285956,0.00041917,30]
[325438204,1714891688572,-6087.43652242,0.00041917,31]
[325438205,1714891688616,-33747.23592195,0.00041917,31]
[325438206,1714891688659,-1896.24197461,0.00041917,31]
[325438207,1714891688702,-540.4437112,0.00041917,31]
[325438208,1714891688746,-592.76694928,0.00041917,31]
[325438209,1714891688787,-1779.1765506,0.00041917,31]
[325438210,1714891688830,-1265.30080828,0.00041917,31]
[325438211,1714891688876,-2913.594484,0.00041917,31]
[325438212,1714891688919,-1727.57998966,0.00041917,31]
[325438213,1714891688962,-16034.71068603,0.00041917,31]
[325438214,1714891689006,-1583.35649235,0.00041917,31]
[325438215,1714891689056,-745.08768251,0.00041917,31]
[325438216,1714891689097,-1685.95926323,0.00041917,31]
[325438217,1714891689137,-4032.42474789,0.00041917,31]
[325438218,1714891689175,-3660.58806191,0.00041917,31]
[325438219,1714891689216,-948.24031072,0.00041917,31]
[325438220,1714891689257,-21962.41624377,0.00041917,31]
[325438221,1714891689300,-2858.21658486,0.00041917,31]
[325438222,1714891689342,-1210.01534073,0.00041917,31]
[325438223,1714891689383,-799.17421256,0.00041917,31]
[325438224,1714891689427,-4837.34500496,0.00041917,31]
[325438225,1714891689469,-707.49945377,0.00041917,31]
[325438226,1714891689513,-26503.51365637,0.00041917,31]
[325438227,1714891689559,-1798.06922904,0.00041917,31]
[325438228,1714891689603,-3367.61666966,0.00041917,31]
[325438229,1714891689644,-1077.75218497,0.00041917,31]
[325438230,1714891689686,-5412.34409322,0.00041917,31]
[325438231,1714891689726,-1409.32757226,0.00041917,31]
[325438232,1714891689767,-75765.20346397,0.00041917,31]
[325438233,1714891689808,-890.19631374,0.00041917,31]
[325438234,1714891689848,-1151.40487647,0.00041917,31]
[325438235,1714891689891,-1255.10474539,0.00041917,31]
[325438236,1714891689934,-1446.71215138,0.00041917,31]
[325438237,1714891689975,-603.29,0.00041917,31]
[325438238,1714891690019,-1771.85546325,0.00041917,31]
[325438239,1714891690062,-2896.31325724,0.00041917,31]
[325438240,1714891690106,-5681.46243844,0.00041917,31]
[325438241,1714891690150,-1451.94624968,0.00041917,31]
[325438242,1714891690193,-3375.31383462,0.00041917,31]
[325438243,1714891690238,-1505.34625377,0.00041917,31]
[325438244,1714891690281,-3902.23152052,0.00041917,31]
[325438245,1714891690326,-1205.06837397,0.00041917,31]
[325438246,1714891690373,-1593.79317027,0.00041917,31]
[325438247,1714891690418,-4465.74148897,0.00041917,31]
[325438248,1714891690465,-1591.03238772,0.00041917,31]
[325438249,1714891690507,-3730.31581247,0.00041917,31]
[325438250,1714891690548,-2894.07361555,0.00041917,31]